﻿Department Family,Entity,Date,Expense Type,Expense Area,Supplier,Amount in Sterling
Companies House,CH,06/09/2021,Adjudicator General           ,Edinburgh                     ,WALKER LOVE                             ,"£7,564.74"
Companies House,CH,14/09/2021,Belfast Maintenance           ,Northern Ireland              ,GOVERNMENT PROPERTY AGENCY (Montagu Evans),"£1,680.60"
Companies House,CH,14/09/2021,Belfast Maintenance           ,Northern Ireland              ,GOVERNMENT PROPERTY AGENCY (Montagu Evans),"£1,680.60"
Companies House,CH,15/09/2021,Belfast Maintenance           ,Northern Ireland              ,GOVERNMENT PROPERTY AGENCY (Montagu Evans),"£1,680.60"
Companies House,CH,09/09/2021,Car parking contract          ,Northern Ireland              ,CBRE NI LIMITED                         ,"£1,005.00"
Companies House,CH,30/09/2021,CHD Invoice Printing          ,Accounting                    ,PARAGON CUSTOMER COMMUNICATIONS (LONDON),£559.09
Companies House,CH,20/09/2021,Circuit Rental                ,Infrastructure                ,AdEPT Telecom PLC                       ,"£4,097.54"
Companies House,CH,14/09/2021,Cleaning Contract             ,Building Services             ,GOVERNMENT PROPERTY AGENCY (Montagu Evans),"£37,437.34"
Companies House,CH,14/09/2021,Cleaning Contract             ,Building Services             ,GOVERNMENT PROPERTY AGENCY (Montagu Evans),"£37,437.34"
Companies House,CH,15/09/2021,Cleaning Contract             ,Building Services             ,GOVERNMENT PROPERTY AGENCY (Montagu Evans),"£37,437.34"
Companies House,CH,14/09/2021,Cleaning Contract             ,Edinburgh                     ,GOVERNMENT PROPERTY AGENCY (Montagu Evans),£843.51
Companies House,CH,14/09/2021,Cleaning Contract             ,Edinburgh                     ,GOVERNMENT PROPERTY AGENCY (Montagu Evans),£843.51
Companies House,CH,15/09/2021,Cleaning Contract             ,Edinburgh                     ,GOVERNMENT PROPERTY AGENCY (Montagu Evans),£843.51
Companies House,CH,14/09/2021,Cleaning Contract             ,London Information Centre     ,GOVERNMENT PROPERTY AGENCY (Montagu Evans),"£1,456.89"
Companies House,CH,14/09/2021,Cleaning Contract             ,London Information Centre     ,GOVERNMENT PROPERTY AGENCY (Montagu Evans),"£1,456.89"
Companies House,CH,15/09/2021,Cleaning Contract             ,London Information Centre     ,GOVERNMENT PROPERTY AGENCY (Montagu Evans),"£1,456.89"
Companies House,CH,14/09/2021,Cleaning Contract             ,Northern Ireland              ,GOVERNMENT PROPERTY AGENCY (Montagu Evans),£617.09
Companies House,CH,14/09/2021,Cleaning Contract             ,Northern Ireland              ,GOVERNMENT PROPERTY AGENCY (Montagu Evans),£617.09
Companies House,CH,15/09/2021,Cleaning Contract             ,Northern Ireland              ,GOVERNMENT PROPERTY AGENCY (Montagu Evans),£617.09
Companies House,CH,22/09/2021,Communications General        ,External Communications                ,ADAM BRONKHORST                         ,"£3,749.62"
Companies House,CH,22/09/2021,Communications General        ,External Communications                ,Golley Slater & Partners Ltd            ,"£12,584.46"
Companies House,CH,22/09/2021,Consultants Computer          ,Accounting                    ,Advanced Business Solutions             ,"£5,695.00"
Companies House,CH,22/09/2021,Contact Centre                ,CDD Cardiff                   ,Serco Limited                           ,"£161,629.58"
Companies House,CH,22/09/2021,Contact Centre                ,CDD Cardiff                   ,Serco Limited                           ,"£168,162.20"
Companies House,CH,15/09/2021,Contact Centre                ,CDD Cardiff                   ,Serco Limited                           ,"£180,870.74"
Companies House,CH,08/09/2021,Contract Staff         ,ACI - Data Science            ,Hays Specialist Recruitment Ltd         ,"£2,228.06"
Companies House,CH,02/09/2021,Contract Staff         ,ACI - Data Science            ,Hays Specialist Recruitment Ltd         ,"£2,785.08"
Companies House,CH,06/09/2021,Contract Staff         ,ACI - Data Science            ,Hays Specialist Recruitment Ltd         ,"£2,785.08"
Companies House,CH,14/09/2021,Contract Staff         ,ACI - Data Science            ,Hays Specialist Recruitment Ltd         ,"£2,785.08"
Companies House,CH,17/09/2021,Contract Staff         ,ACI - Data Science            ,Hays Specialist Recruitment Ltd         ,"£2,785.08"
Companies House,CH,20/09/2021,Contract Staff         ,Building Services             ,MICHAEL PAGE INTERNATIONAL RECRUITMENT  ,£676.50
Companies House,CH,08/09/2021,Contract Staff         ,Building Services             ,MICHAEL PAGE INTERNATIONAL RECRUITMENT  ,"£1,353.00"
Companies House,CH,06/09/2021,Contract Staff         ,Building Services             ,MICHAEL PAGE INTERNATIONAL RECRUITMENT  ,"£1,691.25"
Companies House,CH,14/09/2021,Contract Staff         ,Building Services             ,MICHAEL PAGE INTERNATIONAL RECRUITMENT  ,"£1,691.25"
Companies House,CH,02/09/2021,Contract Staff         ,Building Services             ,MICHAEL PAGE INTERNATIONAL RECRUITMENT  ,"£2,045.15"
Companies House,CH,02/09/2021,Contract Staff         ,Building Services             ,MICHAEL PAGE INTERNATIONAL RECRUITMENT  ,"£2,045.15"
Companies House,CH,08/09/2021,Contract Staff         ,Building Services             ,MICHAEL PAGE INTERNATIONAL RECRUITMENT  ,"£2,045.15"
Companies House,CH,22/09/2021,Contract Staff         ,Building Services             ,MICHAEL PAGE INTERNATIONAL RECRUITMENT  ,"£2,045.15"
Companies House,CH,22/09/2021,Contract Staff         ,Building Services             ,MICHAEL PAGE INTERNATIONAL RECRUITMENT  ,"£2,454.18"
Companies House,CH,08/09/2021,Contract Staff         ,Directorate                   ,Hays Specialist Recruitment Ltd         ,£627.22
Companies House,CH,22/09/2021,Contract Staff         ,Directorate                   ,Hays Specialist Recruitment Ltd         ,£646.55
Companies House,CH,02/09/2021,Contract Staff         ,Directorate                   ,Hays Specialist Recruitment Ltd         ,£660.54
Companies House,CH,02/09/2021,Contract Staff         ,Directorate                   ,Hays Specialist Recruitment Ltd         ,£679.72
Companies House,CH,02/09/2021,Contract Staff         ,HR Strategy & Policy          ,Hays Specialist Recruitment Ltd         ,"£1,224.30"
Companies House,CH,07/09/2021,Contract Staff         ,HR Strategy & Policy          ,Hays Specialist Recruitment Ltd         ,"£1,224.30"
Companies House,CH,07/09/2021,Contract Staff         ,Infrastructure                ,ALEXANDER MANN SOLUTIONS                ,"£2,278.99"
Companies House,CH,14/09/2021,Contract Staff         ,Infrastructure                ,ALEXANDER MANN SOLUTIONS                ,"£2,278.99"
Companies House,CH,27/09/2021,Contract Staff         ,Infrastructure                ,Spring Technology Staffing Services Ltd ,"£2,558.70"
Companies House,CH,02/09/2021,Contract Staff         ,Infrastructure                ,ALEXANDER MANN SOLUTIONS                ,"£2,848.74"
Companies House,CH,08/09/2021,Contract Staff         ,Infrastructure                ,Spring Technology Staffing Services Ltd ,"£3,411.60"
Companies House,CH,02/09/2021,Contract Staff         ,Infrastructure                ,Spring Technology Staffing Services Ltd ,"£4,264.50"
Companies House,CH,02/09/2021,Contract Staff         ,Infrastructure                ,Spring Technology Staffing Services Ltd ,"£4,264.50"
Companies House,CH,06/09/2021,Contract Staff         ,Infrastructure                ,Spring Technology Staffing Services Ltd ,"£4,264.50"
Companies House,CH,27/09/2021,Contract Staff         ,Infrastructure                ,Spring Technology Staffing Services Ltd ,"£4,264.50"
Companies House,CH,30/09/2021,Contract Staff         ,Infrastructure                ,Spring Technology Staffing Services Ltd ,"£4,264.50"
Companies House,CH,28/09/2021,Contract Staff         ,Infrastructure                ,ALEXANDER MANN SOLUTIONS                ,"£5,412.61"
Companies House,CH,08/09/2021,Contract Staff         ,Infrastructure Engineering    ,Hays Specialist Recruitment Ltd         ,"£2,600.16"
Companies House,CH,08/09/2021,Contract Staff         ,Infrastructure Engineering    ,Spring Technology Staffing Services Ltd ,"£2,702.40"
Companies House,CH,02/09/2021,Contract Staff         ,Infrastructure Engineering    ,Hays Specialist Recruitment Ltd         ,"£3,250.20"
Companies House,CH,02/09/2021,Contract Staff         ,Infrastructure Engineering    ,Hays Specialist Recruitment Ltd         ,"£3,250.20"
Companies House,CH,14/09/2021,Contract Staff         ,Infrastructure Engineering    ,Hays Specialist Recruitment Ltd         ,"£3,250.20"
Companies House,CH,22/09/2021,Contract Staff         ,Infrastructure Engineering    ,Hays Specialist Recruitment Ltd         ,"£3,250.20"
Companies House,CH,02/09/2021,Contract Staff         ,Infrastructure Engineering    ,Spring Technology Staffing Services Ltd ,"£3,378.00"
Companies House,CH,06/09/2021,Contract Staff         ,Infrastructure Engineering    ,Spring Technology Staffing Services Ltd ,"£3,378.00"
Companies House,CH,14/09/2021,Contract Staff         ,Infrastructure Engineering    ,Spring Technology Staffing Services Ltd ,"£3,378.00"
Companies House,CH,27/09/2021,Contract Staff         ,Infrastructure Engineering    ,Spring Technology Staffing Services Ltd ,"£3,378.00"
Companies House,CH,02/09/2021,Contract Staff         ,Late Filing Penalties Accounting                ,Hays Specialist Recruitment Ltd         ,£639.00
Companies House,CH,06/09/2021,Contract Staff         ,Late Filing Penalties Accounting                ,Hays Specialist Recruitment Ltd         ,£639.00
Companies House,CH,28/09/2021,Contract Staff         ,Portfolio                     ,CONCEPT RESOURCING T/A CONCEPT INFORMATION,"£2,010.60"
Companies House,CH,07/09/2021,Contract Staff         ,Portfolio                     ,CONCEPT RESOURCING T/A CONCEPT INFORMATION,"£2,215.40"
Companies House,CH,28/09/2021,Contract Staff         ,Portfolio                     ,CONCEPT RESOURCING T/A CONCEPT INFORMATION,"£2,215.40"
Companies House,CH,02/09/2021,Contract Staff         ,Portfolio                     ,CONCEPT RESOURCING T/A CONCEPT INFORMATION,"£2,513.25"
Companies House,CH,07/09/2021,Contract Staff         ,Portfolio                     ,CONCEPT RESOURCING T/A CONCEPT INFORMATION,"£2,513.25"
Companies House,CH,17/09/2021,Contract Staff         ,Portfolio                     ,CONCEPT RESOURCING T/A CONCEPT INFORMATION,"£2,513.25"
Companies House,CH,28/09/2021,Contract Staff         ,Portfolio                     ,CONCEPT RESOURCING T/A CONCEPT INFORMATION,"£2,513.25"
Companies House,CH,30/09/2021,Contract Staff         ,Portfolio                     ,CONCEPT RESOURCING T/A CONCEPT INFORMATION,"£2,513.25"
Companies House,CH,02/09/2021,Contract Staff         ,Portfolio                     ,CONCEPT RESOURCING T/A CONCEPT INFORMATION,"£2,769.25"
Companies House,CH,17/09/2021,Contract Staff         ,Portfolio                     ,CONCEPT RESOURCING T/A CONCEPT INFORMATION,"£2,769.25"
Companies House,CH,28/09/2021,Contract Staff         ,Portfolio                     ,CONCEPT RESOURCING T/A CONCEPT INFORMATION,"£2,769.25"
Companies House,CH,30/09/2021,Contract Staff         ,Portfolio                     ,CONCEPT RESOURCING T/A CONCEPT INFORMATION,"£2,769.25"
Companies House,CH,08/09/2021,Contract Staff         ,Procurement                   ,MICHAEL PAGE INTERNATIONAL RECRUITMENT  ,"£2,378.00"
Companies House,CH,08/09/2021,Contract Staff         ,Procurement                   ,MICHAEL PAGE INTERNATIONAL RECRUITMENT  ,"£2,868.00"
Companies House,CH,02/09/2021,Contract Staff         ,Procurement                   ,Hays Specialist Recruitment Ltd         ,"£3,156.14"
Companies House,CH,08/09/2021,Contract Staff         ,Procurement                   ,Hays Specialist Recruitment Ltd         ,"£3,156.14"
Companies House,CH,22/09/2021,Contract Staff         ,Procurement                   ,Hays Specialist Recruitment Ltd         ,"£3,156.14"
Companies House,CH,15/09/2021,Contract Staff         ,Procurement                   ,MICHAEL PAGE INTERNATIONAL RECRUITMENT  ,"£3,585.00"
Companies House,CH,02/09/2021,Contract Staff         ,Procurement                   ,Hays Specialist Recruitment Ltd         ,"£3,945.18"
Companies House,CH,14/09/2021,Contract Staff         ,Procurement                   ,Hays Specialist Recruitment Ltd         ,"£3,945.18"
Companies House,CH,30/09/2021,Contract Staff         ,Procurement                   ,Hays Specialist Recruitment Ltd         ,"£3,945.18"
Companies House,CH,02/09/2021,Contract Staff         ,Procurement                   ,MICHAEL PAGE INTERNATIONAL RECRUITMENT  ,"£13,623.00"
Companies House,CH,22/09/2021,Contract Staff         ,Projects,Hays Specialist Recruitment Ltd         ,"£1,129.75"
Companies House,CH,08/09/2021,Contract Staff         ,Projects,Hays Specialist Recruitment Ltd         ,"£1,963.12"
Companies House,CH,08/09/2021,Contract Staff         ,Projects,Hays Specialist Recruitment Ltd         ,"£2,259.50"
Companies House,CH,02/09/2021,Contract Staff         ,Projects,Hays Specialist Recruitment Ltd         ,"£2,824.38"
Companies House,CH,08/09/2021,Contract Staff         ,Projects,Hays Specialist Recruitment Ltd         ,"£2,824.38"
Companies House,CH,30/09/2021,Contract Staff         ,Projects,Hays Specialist Recruitment Ltd         ,"£2,824.38"
Companies House,CH,22/09/2021,Contract Staff         ,Projects,Hays Specialist Recruitment Ltd         ,"£2,944.68"
Companies House,CH,02/09/2021,Contract Staff         ,Projects,Hays Specialist Recruitment Ltd         ,"£3,271.86"
Companies House,CH,08/09/2021,Contract Staff         ,Projects,Hays Specialist Recruitment Ltd         ,"£3,271.86"
Companies House,CH,14/09/2021,Contract Staff         ,Projects,Hays Specialist Recruitment Ltd         ,"£3,271.86"
Companies House,CH,30/09/2021,Contract Staff         ,Projects,Hays Specialist Recruitment Ltd         ,"£3,271.86"
Companies House,CH,02/09/2021,Contract Staff         ,"Strategy, Policy & Communications      ",Hays Specialist Recruitment Ltd         ,£603.04
Companies House,CH,07/09/2021,Contract Staff         ,"Strategy, Policy & Communications      ",Hays Specialist Recruitment Ltd         ,"£1,239.38"
Companies House,CH,09/09/2021,Contract Staff         ,"Strategy, Policy & Communications      ",Hays Specialist Recruitment Ltd         ,"£1,313.38"
Companies House,CH,28/09/2021,Contract Staff         ,"Strategy, Policy & Communications      ",Hays Specialist Recruitment Ltd         ,"£1,368.85"
Companies House,CH,22/09/2021,Contract Staff         ,"Strategy, Policy & Communications      ",Hays Specialist Recruitment Ltd         ,"£1,368.86"
Companies House,CH,30/09/2021,Contract Staff         ,"Strategy, Policy & Communications      ",Hays Specialist Recruitment Ltd         ,"£1,368.88"
Companies House,CH,14/09/2021,Contract Staff         ,WebOps & DevOps               ,ALEXANDER MANN SOLUTIONS                ,"£2,344.70"
Companies House,CH,28/09/2021,Contract Staff         ,WebOps & DevOps               ,ALEXANDER MANN SOLUTIONS                ,"£4,689.41"
Companies House,CH,07/09/2021,Contract Staff         ,WebOps & DevOps               ,ALEXANDER MANN SOLUTIONS                ,"£5,861.76"
Companies House,CH,02/09/2021,Digital Communications        ,"Strategy, Policy & Communications      ",Cabinet Office                          ,£992.60
Companies House,CH,14/09/2021,Edinburgh Maintenance         ,Edinburgh                     ,GOVERNMENT PROPERTY AGENCY (Montagu Evans),"£1,040.91"
Companies House,CH,14/09/2021,Edinburgh Maintenance         ,Edinburgh                     ,GOVERNMENT PROPERTY AGENCY (Montagu Evans),"£1,040.91"
Companies House,CH,15/09/2021,Edinburgh Maintenance         ,Edinburgh                     ,GOVERNMENT PROPERTY AGENCY (Montagu Evans),"£1,040.91"
Companies House,CH,08/09/2021,Electricity                   ,Building Services             ,EDF ENERGY CUSTOMERS PLC                ,"£45,628.01"
Companies House,CH,17/09/2021,Electricity                   ,Edinburgh                     ,EDF ENERGY CUSTOMERS PLC                ,£777.67
Companies House,CH,20/09/2021,Electricity                   ,Northern Ireland              ,Power NI                                ,"£2,084.59"
Companies House,CH,07/09/2021,Envelopes                     ,Procurement                   ,BLAKE ENVELOPES                         ,"£2,407.00"
Companies House,CH,07/09/2021,Envelopes                     ,Procurement                   ,BLAKE ENVELOPES                         ,"£4,544.00"
Companies House,CH,24/09/2021,Environmental costs           ,Building Services             ,ARCADIS LLP                             ,£675.00
Companies House,CH,24/09/2021,Environmental costs           ,Building Services             ,ARCADIS LLP                             ,"£1,350.00"
Companies House,CH,17/09/2021,Environmental costs           ,Building Services             ,Advanced Fire Technologies Ltd          ,"£1,790.40"
Companies House,CH,17/09/2021,Environmental costs           ,Building Services             ,Advanced Fire Technologies Ltd          ,"£2,102.40"
Companies House,CH,14/09/2021,Environmental costs           ,Building Services             ,SANTIA ASBESTOS MANAGEMENT LTD          ,"£2,115.00"
Companies House,CH,24/09/2021,Environmental costs           ,Building Services             ,ARCADIS LLP                             ,"£5,062.50"
Companies House,CH,07/09/2021,EST Additions This Year       ,Covid 19 Activity             ,COMBINED OFFICE INTERIORS LTD           ,"£2,637.50"
Companies House,CH,22/09/2021,External Managed Services,Portfolio                     ,AMIDO LTD                               ,"£111,750.00"
Companies House,CH,14/09/2021,External managed services     ,Architecture & Design         ,FDM GROUP                               ,"£54,000.00"
Companies House,CH,14/09/2021,External managed services     ,Architecture & Design         ,FDM GROUP                               ,"£60,876.00"
Companies House,CH,14/09/2021,External managed services     ,Architecture & Design         ,FDM GROUP                               ,"£63,940.00"
Companies House,CH,17/09/2021,Fire Protection               ,Building Services             ,Advanced Fire Technologies Ltd          ,"£4,609.20"
Companies House,CH,27/09/2021,Government Legal              ,Legal Services                ,GOVERNMENT LEGAL DEPARTMENT             ,£969.84
Companies House,CH,27/09/2021,Government Legal              ,Legal Services                ,GOVERNMENT LEGAL DEPARTMENT             ,"£2,891.64"
Companies House,CH,20/09/2021,Hardware & Software Maintenance ,Accounting                    ,CHECKPRINT LTD                          ,"£4,927.60"
Companies House,CH,07/09/2021,Hardware & Software Maintenance ,Cyber Security                ,SoftwareONE UK Ltd                      ,"£65,815.91"
Companies House,CH,08/09/2021,Hardware & Software Maintenance ,HR Strategy & Policy          ,MHR                                     ,"£4,108.58"
Companies House,CH,02/09/2021,Hardware & Software Maintenance ,Infrastructure                ,INSIGHT DIRECT (UK) LTD                 ,£500.00
Companies House,CH,22/09/2021,Hardware & Software Maintenance ,Infrastructure                ,Microsoft Limited                       ,£706.70
Companies House,CH,22/09/2021,Hardware & Software Maintenance ,Infrastructure                ,Phoenix Software                        ,"£46,472.44"
Companies House,CH,02/09/2021,Hardware & Software Maintenance ,WebOps & DevOps               ,EDM Group Ltd                           ,"£23,301.50"
Companies House,CH,07/09/2021,Hardware & Software Maintenance ,WebOps & DevOps               ,APPDYNAMICS INTERNATIONAL LTD           ,"£57,558.00"
Companies House,CH,06/09/2021,Independent adjudication – details withheld,Late Filing Penalties         ,Independent adjudication – details withheld,£768.00
Companies House,CH,30/09/2021,Independent adjudication – details withheld,Late Filing Penalties         ,Independent adjudication – details withheld,"£1,083.60"
Companies House,CH,06/09/2021,Internal Audit costs          ,Organisational Overheads      ,HM TREASURY GROUP                       ,"£27,750.00"
Companies House,CH,27/09/2021,Legal Disbursements,Late Filing Penalties Accounting                ,INDESSER                                ,"£51,977.77"
Companies House,CH,27/09/2021,Legal Disbursements,Late Filing Penalties Edinburgh                 ,INDESSER                                ,"£2,935.42"
Companies House,CH,27/09/2021,Legal Disbursements,Late Filing Penalties Northern Ireland          ,INDESSER                                ,"£1,983.07"
Companies House,CH,27/09/2021,Legal Disbursements           ,Late Filing Penalties Accounting                ,INDESSER                                ,"£11,783.35"
Companies House,CH,14/09/2021,London Maintenance            ,London Information Centre     ,GOVERNMENT PROPERTY AGENCY (Montagu Evans),"£1,667.04"
Companies House,CH,14/09/2021,London Maintenance            ,London Information Centre     ,GOVERNMENT PROPERTY AGENCY (Montagu Evans),"£1,667.04"
Companies House,CH,15/09/2021,London Maintenance            ,London Information Centre     ,GOVERNMENT PROPERTY AGENCY (Montagu Evans),"£1,667.04"
Companies House,CH,14/09/2021,Maintenance Contract          ,Building Services             ,GOVERNMENT PROPERTY AGENCY (Montagu Evans),"£58,747.18"
Companies House,CH,14/09/2021,Maintenance Contract          ,Building Services             ,GOVERNMENT PROPERTY AGENCY (Montagu Evans),"£58,747.18"
Companies House,CH,15/09/2021,Maintenance Contract          ,Building Services             ,GOVERNMENT PROPERTY AGENCY (Montagu Evans),"£58,747.18"
Companies House,CH,17/09/2021,Occupational Health Contract  ,Building Services             ,PEOPLE ASSET MANAGEMENT GROUP LTD       ,"-£1,520.00"
Companies House,CH,17/09/2021,Occupational Health Contract  ,Building Services             ,PEOPLE ASSET MANAGEMENT GROUP LTD       ,£530.00
Companies House,CH,27/09/2021,Occupational Health Contract  ,Building Services             ,PEOPLE ASSET MANAGEMENT GROUP LTD       ,£978.00
Companies House,CH,02/09/2021,Occupational Health Contract  ,Building Services             ,PEOPLE ASSET MANAGEMENT GROUP LTD       ,"£1,294.35"
Companies House,CH,17/09/2021,Occupational Health Contract  ,Building Services             ,PEOPLE ASSET MANAGEMENT GROUP LTD       ,"£1,738.00"
Companies House,CH,02/09/2021,Occupational Health Contract  ,Building Services             ,PEOPLE ASSET MANAGEMENT GROUP LTD       ,"£2,148.00"
Companies House,CH,02/09/2021,Occupational Health Contract  ,Building Services             ,PEOPLE ASSET MANAGEMENT GROUP LTD       ,"£2,171.00"
Companies House,CH,27/09/2021,Occupational Health Contract  ,HR Strategy & Policy          ,PEOPLE ASSET MANAGEMENT GROUP LTD       ,£530.00
Companies House,CH,22/09/2021,Occupational Health Contract  ,HR Strategy & Policy          ,PEOPLE ASSET MANAGEMENT GROUP LTD       ,£910.00
Companies House,CH,23/09/2021,Office Machinery Maintenance  ,Procurement                   ,QUADIENT UK LIMITED                     ,"£1,129.24"
Companies House,CH,22/09/2021,Office Machinery Maintenance  ,Procurement                   ,RISO (uk) LTD                           ,"£1,859.46"
Companies House,CH,23/09/2021,Office Machinery Purchase     ,Procurement                   ,QUADIENT UK LIMITED                     ,"£1,322.10"
Companies House,CH,23/09/2021,payroll and e5 Maintenance    ,Accounting                    ,NCC GROUP                               ,£800.00
Companies House,CH,23/09/2021,payroll and e5 Maintenance    ,Accounting                    ,NCC GROUP                               ,£800.00
Companies House,CH,14/09/2021,Postage,CDD Cardiff                   ,Royal Mail                              ,"£2,045.30"
Companies House,CH,27/09/2021,Postage,CDD Cardiff                   ,Royal Mail                              ,"£2,857.46"
Companies House,CH,02/09/2021,Postage,CDD Cardiff                   ,Royal Mail                              ,"£2,890.39"
Companies House,CH,27/09/2021,Postage,CDD Cardiff                   ,Royal Mail                              ,"£4,146.05"
Companies House,CH,20/09/2021,Postage,CDD Cardiff                   ,Royal Mail                              ,"£4,684.05"
Companies House,CH,15/09/2021,Postage,Edinburgh                     ,Royal Mail                              ,£991.72
Companies House,CH,14/09/2021,Postage,Northern Ireland              ,APOLLO DISTRIBUTION SOLUTIONS LTD       ,"£1,954.00"
Companies House,CH,09/09/2021,Print and Mailing Contract    ,CDD Cardiff                   ,APS GROUP                               ,"£3,014.68"
Companies House,CH,09/09/2021,Print and Mailing Contract    ,CDD Cardiff                   ,APS GROUP                               ,"£5,601.54"
Companies House,CH,09/09/2021,Print and Mailing Contract    ,CDD Cardiff                   ,APS GROUP                               ,"£24,060.71"
Companies House,CH,09/09/2021,Print and Mailing Contract    ,CDD Cardiff                   ,APS GROUP                               ,"£46,458.14"
Companies House,CH,30/09/2021,Print and Mailing Contract    ,CDD Cardiff                   ,APS GROUP                               ,"£149,328.81"
Companies House,CH,27/09/2021,Print and Mailing Contract    ,CDD Cardiff                   ,APS GROUP                               ,"£159,264.09"
Companies House,CH,23/09/2021,Print and Mailing Contract    ,Late Filing Penalties         ,A McLay & Company Ltd                   ,"£4,217.01"
Companies House,CH,23/09/2021,Print and Mailing Contract    ,Late Filing Penalties         ,A McLay & Company Ltd                   ,"£4,565.41"
Companies House,CH,23/09/2021,Print and Mailing Contract    ,Late Filing Penalties         ,A McLay & Company Ltd                   ,"£5,865.16"
Companies House,CH,20/09/2021,Professional Fees             ,Infrastructure                ,FREEDOM COMMUNICATIONS (UK) LIMITED     ,"£2,500.00"
Companies House,CH,10/09/2021,Professional Fees             ,Infrastructure                ,NCC GROUP                               ,"£4,165.00"
Companies House,CH,22/09/2021,Professional Fees             ,Infrastructure Engineering    ,EDM Group Ltd                           ,"£4,225.00"
Companies House,CH,17/09/2021,Rates,Building Services             ,GOVERNMENT PROPERTY AGENCY (Montagu Evans),"£22,107.81"
Companies House,CH,17/09/2021,Rates,Building Services             ,GOVERNMENT PROPERTY AGENCY (Montagu Evans),"£36,082.63"
Companies House,CH,09/09/2021,Rates,Building Services           ,City and County of Cardiff            ,"£63,308.00"
Companies House,CH,15/09/2021,Rates,London ,The City of Westminser,"£2,944.00"
Companies House,CH,15/09/2021,Rates,London        ,The City of Westminser,"£1,934.00"
Companies House,CH,20/09/2021,Recruitment Expenses          ,HR Service delivery           ,DVV MEDIA INTERNATIONAL LTD             ,£749.00
Companies House,CH,15/09/2021,Recruitment Expenses          ,HR Service delivery           ,Indeed Ireland Operations Ltd           ,"£2,000.00"
Companies House,CH,17/09/2021,Recruitment Expenses          ,HR Service delivery           ,LINKEDIN IRELAND UNLIMITED COMPANY      ,"£47,095.00"
Companies House,CH,07/09/2021,Rent                          ,Northern Ireland              ,CBRE NI LIMITED                         ,"£34,749.00"
Companies House,CH,23/09/2021,Restaurant Services           ,Building Services             ,ARAMARK                                 ,"£12,571.98"
Companies House,CH,02/09/2021,Rolling Maintenance & minor contracts,Building Services             ,City and County of Cardiff              ,"£1,000.00"
Companies House,CH,06/09/2021,Rolling Maintenance & minor contracts,Building Services             ,FAITHFUL+GOULD LTD                      ,"£4,400.00"
Companies House,CH,20/09/2021,Rolling Maintenance & minor contracts,Building Services             ,CLEMENT WALKER ELECTRICAL & MECHANICAL  ,"£4,938.00"
Companies House,CH,20/09/2021,Rolling Maintenance & minor contracts,Building Services             ,A2M SAFETY LIMITED                      ,"£26,130.00"
Companies House,CH,06/09/2021,Rolling Maintenance & minor contracts,Estates Projects              ,FAITHFUL+GOULD LTD                      ,"£2,417.00"
Companies House,CH,23/09/2021,Rolling Maintenance & minor contracts,Estates Projects              ,Advanced Fire Technologies Ltd          ,"£15,521.68"
Companies House,CH,14/09/2021,Security                      ,Accounting                    ,Loomis Uk Ltd                           ,£688.42
Companies House,CH,30/09/2021,Security                      ,Accounting                    ,Loomis Uk Ltd                           ,£688.42
Companies House,CH,14/09/2021,Security                      ,Building Services             ,GOVERNMENT PROPERTY AGENCY (Montagu Evans),"£35,932.01"
Companies House,CH,14/09/2021,Security                      ,Building Services             ,GOVERNMENT PROPERTY AGENCY (Montagu Evans),"£35,932.01"
Companies House,CH,15/09/2021,Security                      ,Building Services             ,GOVERNMENT PROPERTY AGENCY (Montagu Evans),"£35,932.01"
Companies House,CH,14/09/2021,Security                      ,London Information Centre     ,GOVERNMENT PROPERTY AGENCY (Montagu Evans),"£8,222.05"
Companies House,CH,14/09/2021,Security                      ,London Information Centre     ,GOVERNMENT PROPERTY AGENCY (Montagu Evans),"£8,222.05"
Companies House,CH,15/09/2021,Security                      ,London Information Centre     ,GOVERNMENT PROPERTY AGENCY (Montagu Evans),"£8,222.05"
Companies House,CH,07/09/2021,Service charges               ,Northern Ireland              ,CBRE NI LIMITED                         ,"£6,646.42"
Companies House,CH,06/09/2021,Software as a service         ,Cyber Security                ,E2E ASSURE                              ,"£19,935.00"
Companies House,CH,20/09/2021,Software as a service         ,HR Strategy & Policy          ,QUALTRICS LLC                           ,"£23,941.00"
Companies House,CH,06/09/2021,Software as a service         ,Infrastructure                ,AZEUS UK LTD                            ,"£3,420.00"
Companies House,CH,17/09/2021,Software as a service         ,Infrastructure                ,INSIGHT DIRECT (UK) LTD                 ,"£8,893.20"
Companies House,CH,20/09/2021,Stationery & Consumables      ,CDD Cardiff                   ,WARREN BOARD SALES LTD                  ,"£1,778.62"
Companies House,CH,14/09/2021,Stationery & Consumables      ,Procurement                   ,Complete Business Solutions             ,£909.60
Companies House,CH,22/09/2021,Stationery & Consumables      ,Procurement                   ,RISO (uk) LTD                           ,"£2,332.00"
Companies House,CH,27/09/2021,Stationery & Consumables      ,Procurement                   ,Complete Business Solutions             ,"£5,310.00"
Companies House,CH,28/09/2021,Subscriptions                 ,HR Strategy & Policy          ,XEXEC LIMITED                           ,£599.00
Companies House,CH,14/09/2021,TFM Management fees           ,Building Services             ,GOVERNMENT PROPERTY AGENCY (Montagu Evans),"£13,132.40"
Companies House,CH,14/09/2021,TFM Management fees           ,Building Services             ,GOVERNMENT PROPERTY AGENCY (Montagu Evans),"£13,132.40"
Companies House,CH,15/09/2021,TFM Management fees           ,Building Services             ,GOVERNMENT PROPERTY AGENCY (Montagu Evans),"£13,132.40"
Companies House,CH,14/09/2021,TFM Management fees           ,Edinburgh                     ,GOVERNMENT PROPERTY AGENCY (Montagu Evans),£839.54
Companies House,CH,14/09/2021,TFM Management fees           ,Edinburgh                     ,GOVERNMENT PROPERTY AGENCY (Montagu Evans),£839.54
Companies House,CH,15/09/2021,TFM Management fees           ,Edinburgh                     ,GOVERNMENT PROPERTY AGENCY (Montagu Evans),£839.54
Companies House,CH,14/09/2021,TFM Management fees           ,London Information Centre     ,GOVERNMENT PROPERTY AGENCY (Montagu Evans),"£1,269.02"
Companies House,CH,14/09/2021,TFM Management fees           ,London Information Centre     ,GOVERNMENT PROPERTY AGENCY (Montagu Evans),"£1,269.02"
Companies House,CH,15/09/2021,TFM Management fees           ,London Information Centre     ,GOVERNMENT PROPERTY AGENCY (Montagu Evans),"£1,269.02"
Companies House,CH,14/09/2021,TFM Management fees           ,Northern Ireland              ,GOVERNMENT PROPERTY AGENCY (Montagu Evans),£833.48
Companies House,CH,14/09/2021,TFM Management fees           ,Northern Ireland              ,GOVERNMENT PROPERTY AGENCY (Montagu Evans),£833.48
Companies House,CH,15/09/2021,TFM Management fees           ,Northern Ireland              ,GOVERNMENT PROPERTY AGENCY (Montagu Evans),£833.48
Companies House,CH,09/09/2021,TFM Management fees           ,Organisational Overheads      ,GOVERNMENT PROPERTY AGENCY (Montagu Evans),"£3,180.00"
Companies House,CH,08/09/2021,TFM refurbishment             ,Estates Projects              ,SUREMARK (FACILITIES) LTD               ,"£37,620.00"
Companies House,CH,28/09/2021,Training CDD                  ,Training                      ,TMS Developement International Ltd      ,£654.00
Companies House,CH,14/09/2021,Training CDD                  ,Training                      ,INSTITUTE OF CUSTOMER SERVICE           ,"£2,250.00"
Companies House,CH,09/09/2021,Training Digital              ,Training                      ,ASSIST KNOWLEDGE DEVELOPMENT LTD        ,£780.00
Companies House,CH,09/09/2021,Training Digital              ,Training                      ,ASSIST KNOWLEDGE DEVELOPMENT LTD        ,£795.00
Companies House,CH,06/09/2021,Training Digital              ,Training                      ,University of South Wales               ,"£3,190.00"
Companies House,CH,28/09/2021,Training External             ,Training                      ,BEAM DEVELOPMENT & TRAINING LTD         ,"£1,000.00"
Companies House,CH,02/09/2021,Training External             ,Training                      ,CIVIL SERVICE COLLEGE LTD               ,"£2,612.50"
Companies House,CH,02/09/2021,Training People Transformation,HR Strategy & Policy          ,GOVERNMENT LEGAL DEPARTMENT             ,£927.12
Companies House,CH,02/09/2021,Training People Transformation,HR Strategy & Policy          ,GOVERNMENT LEGAL DEPARTMENT             ,"£4,098.72"
Companies House,CH,14/09/2021,Training People Transformation,Training                      ,CSL-KPMG LLP                            ,£898.00
Companies House,CH,02/09/2021,Training People Transformation,Training                      ,CSL-KPMG LLP                            ,"£2,991.00"
Companies House,CH,30/09/2021,Training Policy/Communications  ,Training                      ,CSL-KPMG LLP                            ,"£1,909.00"
Companies House,CH,15/09/2021,Water                         ,Building Services             ,Dwr Cymru Welsh Water                   ,"£1,369.73"
Companies House,CH,27/09/2021,Wood Pellets                  ,Building Services             ,AMP CLEAN ENERGY                        ,"£4,047.31"
